Cogmind - Beta 11.1 @@@ ROGUE MODE // 2022.12.17 @ 02:23:08 Player: hinoya Result: Destroyed by S-27 Virus with Autogun Performance ------------- Evolutions (1) 500 Regions Visited (5) 1000 Robots Destroyed (2) 10 Value Destroyed (50) 50 Prototype IDs (1) 20 Alien Tech Used (0) 0 Bonus (25) 25 TOTAL SCORE: 1605 Bonus ------- Follower Combat Kills 25 Cogmind --------- Core Integrity 0/400 Matter 290/300 Energy 100/100 System Corruption 0% Temperature Cool (0) Movement Core (50) Location -6/Proximity Caves Parts ------- > --- POWER (1) -------- (None) > --- PROPULSION (3) --- (None) > --- UTILITY (3) ------ Signal Interpreter Hacking Suite > --- WEAPON (2) ------- (None) > --- INVENTORY (5) ---- GAL Module Peak State ------------ > --- POWER ------------ Ion Engine > --- PROPULSION ------- Flight Unit Flight Unit > --- UTILITY ---------- Signal Interpreter Hacking Suite Hacking Drone Bay > --- WEAPON ----------- Mining Laser > --- INVENTORY -------- Aluminum Leg Aluminum Leg Wheel Compact Wheel GAL Module [Rating: 18] Favorites ----------- Power Ion Engine Engine Ion Engine Propulsion Flight Unit Leg Aluminum Leg Wheel Wheel Flight Unit Flight Unit Utility Hacking Suite Device Hacking Drone Bay Storage Small Storage Unit Processor Signal Interpreter Hackware Hacking Suite Protection Propulsion Shielding Weapon Mining Laser Energy Gun Medium Laser Ballistic Gun Light Assault Rifle Special Weapon Mining Laser Build | -11 -10 -9 -9 -7 -6 ------- Run | Scr Mat Mat Min Zio Pro Slots Evolved 2 | . . 2 . . . Power . | . . . . . . Propulsion 1 | . . 1 . . . Utility 1 | . . 1 . . . Weapon . | . . . . . . Parts Attached 21 | 6 7 1 2 1 4 Power 1 | 1 . . . . . Engine 1 | 1 . . . . . Core . | . . . . . . Reactor . | . . . . . . Propulsion 9 | 2 3 . . . 4 Treads . | . . . . . . Leg 5 | 2 1 . . . 2 Wheel 2 | . . . . . 2 Hover . | . . . . . . Flight 2 | . 2 . . . . Utility 7 | 1 3 1 1 1 . Device 3 | . 1 1 . 1 . Storage 1 | 1 . . . . . Processor 1 | . . . 1 . . Hackware 1 | . 1 . . . . Protection 1 | . 1 . . . . Artifact . | . . . . . . Weapon 4 | 2 1 . 1 . . Energy Gun 1 | . 1 . . . . Energy Cannon . | . . . . . . Ballistic Gun 2 | 2 . . . . . Ballistic Cannon . | . . . . . . Launcher . | . . . . . . Special Weapon 1 | . . . 1 . . Impact Weapon . | . . . . . . Slashing Weapon . | . . . . . . Piercing Weapon . | . . . . . . Special Melee Weapon . | . . . . . . Unidentified Prototypes 1 | . . . . 1 . Parts Lost 10 | . . . 1 . 9 Power 1 | . . . . . 1 Propulsion 6 | . . . . . 6 Utility 2 | . . . 1 . 1 Weapon 1 | . . . . . 1 Highest Loss Streak 6 | . . . 1 . 6 To Critical Strikes . | . . . . . . Average Slot Usage (%) 76 | . 92 64 65 73 55 Engine 11 | . 14 11 11 11 6 Leg 9 | . 22 . . . 2 Wheel 1 | . . . . . 11 Flight 12 | . 5 22 22 22 3 Device 5 | . 1 20 3 7 8 Storage 1 | . 3 . . . . Processor 5 | . . . 7 11 11 Hackware 11 | . 12 11 11 11 11 Protection 3 | . 8 . . . . Energy Gun 1 | . 4 . . . . Ballistic Gun 7 | . 18 . . . . Special Weapon 4 | . . . 10 11 1 Naked Turns . | . . . . . . Heaviest Build 13 | 13 13 8 8 7 7 Greatest Support 26 | 20 20 8 8 8 26 Greatest Overweight (x) 2 | . 2 . . . 1 Average Overweight (x) . | . . . . . . Largest Inventory Capacity 8 | 8 8 5 5 5 5 Average Capacity 5 | 6 5 5 5 5 5 Most Carried 6 | 4 6 5 5 5 5 Average Carried 4 | 2 4 5 4 4 3 Final Capacity 8 | 8 5 5 5 5 5 Final Carried 5 | 4 5 5 4 5 1 Class Distribution -------------------- 100% | Mutant Dominant Class ---------------- Mutant | -10/Materials Mutant | -9/Materials Mutant | -9/Mines Mutant | -7/Zion Mutant | -6/Proximity Caves Resources | -11 -10 -9 -9 -7 -6 ----------- Run | Scr Mat Mat Min Zio Pro Matter Collected 373 | 260 18 . 79 16 . Remotely . | . . . . . . Salvage Created 49 | . 49 . . . . Parts 5 | . 5 . . . . Haulers Intercepted . | . . . . . . Recyclers Shooed . | . . . . . . Parts Field Recycled . | . . . . . . Retrieved Matter . | . . . . . . Parts Self-Destructed . | . . . . . . Prevented . | . . . . . . Kills | -11 -10 -9 -9 -7 -6 ------- Run | Scr Mat Mat Min Zio Pro Combat Hostiles Destroyed 1 | . 1 . . . . Guns 1 | . 1 . . . . Classes Destroyed 2 | . 2 . . . . Operator 1 | . 1 . . . . Grunt 1 | . 1 . . . . Best Kill Streak 1 | . 1 . . . . Combat Bots Only 1 | . 1 . . . . Max Kills in Single Turn 1 | . 1 . . . . Gunslinging . | . . . . . . Exploded . | . . . . . . Melee . | . . . . . . Uniques/NPCs Destroyed . | . . . . . . Combat | -11 -10 -9 -9 -7 -6 -------- Run | Scr Mat Mat Min Zio Pro Damage Taken 1018 | . . 24 123 . 871 Core 410 | . . 10 67 . 333 Absorbed by Shields . | . . . . . . Core Remaining (%) 100 | 100 100 . . . . Volleys Fired 2 | . 2 . . . . Largest 2 | . 2 . . . . Hottest 40 | . 40 . . . . Shots Fired 4 | . 4 . . . . Gun 4 | . 4 . . . . Cannon . | . . . . . . Launcher . | . . . . . . Special . | . . . . . . Kinetic 4 | . 4 . . . . Thermal . | . . . . . . Explosive . | . . . . . . Electromagnetic . | . . . . . . Robot Hit Streak 2 | . 2 . . . . Robot Miss Streak . | . . . . . . Penetration Max . | . . . . . . Secondary Targets . | . . . . . . Shots Hit Robots 2 | . 2 . . . . Core Hits 4 | . 3 . . . 1 Critical Kills . | . . . . . . Critical Parts Destroyed . | . . . . . . Critical Strikes . | . . . . . . Melee Attacks . | . . . . . . Impact . | . . . . . . Slashing . | . . . . . . Piercing . | . . . . . . Sneak Attacks . | . . . . . . Combat Hostiles . | . . . . . . Follow-up Attacks . | . . . . . . Damage Inflicted 44 | . 39 . . . 5 Guns 39 | . 39 . . . . Cannons . | . . . . . . Explosions . | . . . . . . Melee . | . . . . . . Ramming 5 | . . . . . 5 Kinetic 39 | . 39 . . . . Thermal . | . . . . . . Explosive . | . . . . . . Electromagnetic . | . . . . . . Impact . | . . . . . . Slashing . | . . . . . . Piercing . | . . . . . . Highest Corruption . | . . . . . . Average Corruption . | . . . . . . Corruption Purged . | . . . . . . Corruption Blocked . | . . . . . . Overload Shots . | . . . . . . Overflow Damage . | . . . . . . Projectiles . | . . . . . . Explosions . | . . . . . . Melee . | . . . . . . Knockbacks . | . . . . . . Impact . | . . . . . . Kinetic . | . . . . . . Secondary . | . . . . . . Self-Inflicted Damage 2 | . . . . . 2 Shots . | . . . . . . Rammed 3 | . . . . . 3 Targets Rammed 3 | . . . . . 3 Kicked . | . . . . . . Crushed . | . . . . . . Highest Temperature 3 | . . . . . 3 Average Temperature 3 | . . . . . 3 Received Heat Transfer 102 | . . 15 12 . 75 Siege Activations . | . . . . . . Robots Corrupted . | . . . . . . Combat Hostiles . | . . . . . . Parts Fried . | . . . . . . Impact Corruptions . | . . . . . . Robots Melted . | . . . . . . Combat Hostiles . | . . . . . . Parts Melted . | . . . . . . Heat Transferred . | . . . . . . Parts Sabotaged . | . . . . . . Parts Stolen . | . . . . . . Parts Stripped . | . . . . . . Power Chain Reactions . | . . . . . . Missiles Intercepted . | . . . . . . Alert | -11 -10 -9 -9 -7 -6 ------- Run | Scr Mat Mat Min Zio Pro Peak Influence 145 | . 81 90 145 . . Initial 34 | . . 33 34 . . Average 59 | . 55 22 112 . . Maximum Alert Level . | . . . . . . Low Security (%) 100 | 100 100 100 100 . . Level 1 . | . . . . . . Level 2 . | . . . . . . Level 3 . | . . . . . . Level 4 . | . . . . . . Level 5 . | . . . . . . High Security . | . . . . . . Max Security . | . . . . . . Squads Dispatched 3 | . 1 2 . . . Investigation 2 | . 1 1 . . . Extermination . | . . . . . . Reinforcement 1 | . . 1 . . . Assault . | . . . . . . Garrison . | . . . . . . Intercept . | . . . . . . Searches Triggered . | . . . . . . Construction Impeded . | . . . . . . Haulers Reinforced . | . . . . . . Active Scanning Responses . | . . . . . . Cargo Convoy Interrupts . | . . . . . . Stealth | -11 -10 -9 -9 -7 -6 --------- Run | Scr Mat Mat Min Zio Pro Distress Signals 1 | . 1 . . . . Communications Jammed . | . . . . . . Distress Signals . | . . . . . . Times Spotted 34 | . 9 9 7 . 9 Peak Tracking Total 10 | . 2 5 4 . 10 Tactical Retreats 4 | . . 1 2 . 1 Traps | -11 -10 -9 -9 -7 -6 ------- Run | Scr Mat Mat Min Zio Pro Traps Triggered . | . . . . . . Indirectly . | . . . . . . Trap Hack Attempts . | . . . . . . Triggered . | . . . . . . Disarmed . | . . . . . . Reprogrammed . | . . . . . . Reused . | . . . . . . Traps Extracted . | . . . . . . Installed . | . . . . . . Triggered . | . . . . . . Machines | -11 -10 -9 -9 -7 -6 ---------- Run | Scr Mat Mat Min Zio Pro Machines Disabled . | . . . . . . Max in Single Turn . | . . . . . . Machines Sabotaged . | . . . . . . Garrisons Compromised . | . . . . . . Overloaded Fab Kills . | . . . . . . Hacking | -11 -10 -9 -9 -7 -6 --------- Run | Scr Mat Mat Min Zio Pro Machines Accessed 4 | . 2 1 . 1 . Terminals 2 | . 1 1 . . . Fabricators . | . . . . . . Repair Stations . | . . . . . . Recycling Units 1 | . 1 . . . . Scanalyzers . | . . . . . . Garrison Access . | . . . . . . Total Hacks 16 | . 10 3 . 3 . Successful 13 | . 7 3 . 3 . Failed 3 | . 3 . . . . Catastrophic 1 | . 1 . . . . Database Lockouts . | . . . . . . Manual . | . . . . . . Terminals 12 | . 9 3 . . . Fabricators . | . . . . . . Repair Stations . | . . . . . . Recycling Units 1 | . 1 . . . . Scanalyzers . | . . . . . . Garrison Access . | . . . . . . Terminal Hacks 13 | . 7 3 . 3 . Record 7 | . 7 . . . . Part Schematic 3 | . . . . 3 . Alert Level 1 | . . 1 . . . Unreport Threat 1 | . . 1 . . . Zone Layout 1 | . . 1 . . . Fabricator Hacks . | . . . . . . Repair Station Hacks . | . . . . . . Recycling Unit Hacks . | . . . . . . Scanalyzer . | . . . . . . Garrison Access Hacks . | . . . . . . Unauthorized Hacks . | . . . . . . Terminals . | . . . . . . Fabricators . | . . . . . . Repair Stations . | . . . . . . Recycling Units . | . . . . . . Scanalyzers . | . . . . . . Garrison Access . | . . . . . . Data Cores Recovered 1 | . 1 . . . . Used 1 | . 1 . . . . Hacking Detections 3 | . 2 1 . . . Full Trace Events 2 | . 1 1 . . . Feedback Events . | . . . . . . Feedback Blocked . | . . . . . . Robot Schematics Acquired 2 | . . . . 2 . Robots Built . | . . . . . . Authchips . | . . . . . . Time . | . . . . . . Total Robot Build Rating . | . . . . . . Part Schematics Acquired 18 | . . . . 18 . Parts Built . | . . . . . . Authchips . | . . . . . . Time . | . . . . . . Total Part Build Rating . | . . . . . . Parts Repaired . | . . . . . . Time . | . . . . . . Parts Recycled . | . . . . . . Recycled Matter . | . . . . . . Retrieved Matter . | . . . . . . Retrieved Components . | . . . . . . Parts Scanalyzed . | . . . . . . Part Schematics Acquired . | . . . . . . Parts Damaged . | . . . . . . Bothacking | -11 -10 -9 -9 -7 -6 ------------ Run | Scr Mat Mat Min Zio Pro Used RIF Installer . | . . . . . . Robots Hacked . | . . . . . . Non-combat . | . . . . . . Combat . | . . . . . . Robot Hacks Applied . | . . . . . . Relay Couplers Released . | . . . . . . Fabnet Peak Effective % . | . . . . . . Robots Rewired . | . . . . . . Allies Hacked . | . . . . . . Hacks Repelled . | . . . . . . Allies | -11 -10 -9 -9 -7 -6 -------- Run | Scr Mat Mat Min Zio Pro Total Allies 1 | . . . 1 . . Largest Group 1 | . . . 1 . . Highest-Rated Group 31 | . . . 31 . . Highest-Rated Ally 31 | . . . 31 . . Total Orders . | . . . . . . Ally Attacks 11 | . . . 11 . . Total Damage 165 | . . . 165 . . Kills 1 | . . . 1 . . Allies Corrupted . | . . . . . . Allies Melted . | . . . . . . Intel | -11 -10 -9 -9 -7 -6 ------- Run | Scr Mat Mat Min Zio Pro Robot Analysis Total . | . . . . . . Derelict Logs Recovered 1 | . . . . 1 . Drone Launches 1 | . . . . 1 . Drone Recoveries . | . . . . . . Exploration | -11 -10 -9 -9 -7 -6 ------------- Run | Scr Mat Mat Min Zio Pro Turns Passed 1051 | 72 380 58 147 248 146 Spaces Moved 1769 | 58 311 153 388 661 198 Core 55 | 18 . . . . 37 Treads . | . . . . . . Legs 339 | 40 284 . . . 15 Wheels 83 | . . . . . 83 Hover . | . . . . . . Flight 1292 | . 27 153 388 661 63 Fastest Speed 37 | 50 37 37 37 37 37 Average Speed 56 | 98 114 37 37 37 69 Slowest Speed 210 | 120 210 37 37 37 120 Overloaded Moves . | . . . . . . Propulsion Burnouts . | . . . . . . Robots Hopped 10 | . . 6 4 . . Cave-ins Triggered . | . . . . . . Exploration Rate (%) 39 | 5 45 19 63 71 32 Regions Visited 5 Branch Regions 3 Pre-discovered Areas . | . . . . . . Known Exits Taken 2 | . . . 1 1 . Unknown Exits Taken 3 | 1 1 1 . . . Scrap Searched 4 | . . . 1 3 . Spaces Dug . | . . . . . . Terrain Destroyed . | . . . . . . Melee . | . . . . . . Projectile . | . . . . . . AOE . | . . . . . . Terrain Rammed . | . . . . . . Walls Destroyed . | . . . . . . Machines Disabled . | . . . . . . Actions | -11 -10 -9 -9 -7 -6 --------- Run | Scr Mat Mat Min Zio Pro Total 1808 | 73 334 147 386 663 205 Wait . | . . . . . . Move 1747 | 57 310 141 381 660 198 Hop 7 | . . 5 2 . . Pick Up 19 | 10 7 . . 2 . Fast Attach 4 | . 2 1 1 . . Attach 16 | 6 4 . 1 1 4 Detach . | . . . . . . Swap 1 | . 1 . . . . Drop 9 | . 8 . 1 . . Fire 2 | . 2 . . . . Melee . | . . . . . . Ram 3 | . . . . . 3 Kick . | . . . . . . Crush . | . . . . . . Escape Stasis . | . . . . . . Rewire . | . . . . . . Trap . | . . . . . . Miscellaneous . | . . . . . . Route ------- -11/Scrapyard -10/Materials -9/Materials -9/Mines -7/Zion -6/Proximity Caves History --------- Turn | Location | Event 5 | -11/Scrapyard | Discovered new exit (range 16) 73 | -11/Scrapyard | Entered Materials 298 | -10/Materials | Discovered new exit (range 15) 349 | -10/Materials | Build established: Mutant 453 | -10/Materials | Entered another Materials area 453 | -9/Materials | Evolved 2 slots: Propulsion x1, Utility x1 505 | -9/Materials | Discovered new exit (range 16) 511 | -9/Materials | Entered Mines 520 | -9/Mines | Received a Mining Laser from a helpful Derelict 529 | -9/Mines | Met a Derelict bent on vengeance 655 | -9/Mines | A Derelict revealed a hidden shortcut to a safe place 657 | -9/Mines | Identified exit to Zion 658 | -9/Mines | Entered Zion 698 | -7/Zion | Acquired unknown access codes intercepted by a Zionite 719 | -7/Zion | Given the Hacking Drone Bay 720 | -7/Zion | Found Prototype Device 722 | -7/Zion | Identified Hacking Drone Bay 879 | -7/Zion | Learned Factory security intel 894 | -7/Zion | Discovered new exit (range 10) 898 | -7/Zion | Found GAL Module 905 | -7/Zion | Identified exit to Proximity Caves 906 | -7/Zion | Entered Proximity Caves 908 | -6/Proximity Caves | Attracted the attention of an 0b10 checkpoint 965 | -6/Proximity Caves | Lost 3 parts (2n1w) 1001 | -6/Proximity Caves | Core integrity fell below 50% 1029 | -6/Proximity Caves | Core integrity fell below 20% 1052 | -6/Proximity Caves | Destroyed by S-27 Virus with Autogun Last Messages --------------- GOAL=ESCAPE 00908_ Y-54 Guardian: "INTERCEPTING UNREGISTERED DERELICT." 00924_ Mining Laser destroyed. 00927_ Flight Unit destroyed. 00937_ M-22 Extractor extracted Dirty Bomb Trap. 00950_ M-22 Extractor reprogrammed Fire Trap. 00952_ M-22 Extractor extracted Fire Trap. 00988_ Penetrated by Slug. 00988_ L-41 Fighter springs to life. 00990_ Ion Engine destroyed. 01001_ Slammed into S-27 Virus. 01001_ Com. Wheel broken. 01001_ Destabilizing: Short circuit. 01002_ Slammed into S-27 Virus. 01002_ Destabilizing: Core damaged (-16). 01003_ Slammed into S-27 Virus. 01013_ Broken Com. Wheel destroyed. 01014_ Wheel destroyed. 01015_ Hacking Drone Bay destroyed. 01032_ Aluminum Leg destroyed. Map ----- +----------------------------------------------------+ | ?????????????????????????????????????????????????? | | ?????????????????????????????????????????????????? | | ?????????????????????????????????????????????????? | | ?????????????????????????????????????????????????? | | ?????????????????????????????????????????????????? | | ?????????????????????????????????????????????????? | | ?????????????????????????????????????????????????? | | ?????????????????????????????????????????????????? | | ?????????????????#???## ?????????????????????????? | | ????????????????? ### ?????????????????????????? | | ????????????????? ??????????????????????????? | | ????????????????? ??????????????????????????? | | ????????????????? ??????????????????????????? | | ????????????????? ???????????????????????????? | | ????####?????????? ???????????????????????????? | | ???## #??????????# #???????????????????????????? | | #### #??????????# #???????????????????????????? | | ##?????????# ##??????????????????????????? | | # ## ##??####??# ##?????????????????????????? | | # ## #### #### ###???????????????????????? | | ### # ##??????????????????????? | | ### # ss ##?????????????????????? | | # ##?## ###### #?????????????????????? | | ####???# #????### #?????????????????????? | | ??????# # #??????## ### ## #????????????? | | ?????# #??????## @ #??????????? | | ?????# # #??????## ????????? | | ?????# # #???????# """ ????????? | | ????? # ??????? "" ?????????? | | ???? # ????? """ ?????????? | | ??? # #### ??? "" ? ??????????? | | ?? #????### ?? """ "?"???????????????? | | ? ? #????????# ?## "" ?????????????????? | | ??? ?#??????????????# " ??????????????????? | | ?????????????????????# ???????????????????? | | ?????????????????????# # ???????????????????? | | #???????????????????? ? ## ???????????????????? | | #???????????????????? ? ?# ??????????????????? | | #???????????????????? ? ?? ??????????????????? | | #???????????????????? ? ??????????????????????? | | #????????????????????? ? ??????????????????????? | | #??????????????????????????????????????????????? | | #??????????????????????????????????????????????? | | # ?????????????????????????????????????????????? | | #?? ????????????????????????????????????????????? | | ##???#???????????????????????????????????????????? | | #????????????????????????????????????????????????? | | #????????????????????????????????????????????????? | | ?????????????????????????????????????????????????? | | ?????????????????????????????????????????????????? | +----------------------------------------------------+ Best States ------------- Heat Dissipation 28 Energy Generation 10 Energy Capacity 250 Matter Stores 300 Matter Capacity 300 Sight Range 16 Terrain Scan Range 14 Terrain Scan Density 10 ECM Strength 1 Propulsion Shielding 33 Evasion (%) 62 Offensive Hacking 10 Item Schematics ----------------- Beamcaster | -7/Zion | Free Barrage Gun | -7/Zion | Free Battle Cannon | -7/Zion | Free Coil Gun | -7/Zion | Archive Component Analysis Suite | -7/Zion | Archive Chainsword | -7/Zion | Archive Thermic Laser | -7/Zion | Archive Imp. Carbon-fiber Leg | -7/Zion | Archive Imp. Target Analyzer | -7/Zion | Archive Weapon Cycler | -7/Zion | Archive Stasis Canceller | -7/Zion | Archive Mak. Leg | -7/Zion | Archive Imp. Medium Treads | -7/Zion | Archive Adv. Terrain Scan Processor | -7/Zion | Archive Imp. Trap Scanner | -7/Zion | Archive Hvy. Missile Launcher | -7/Zion | Archive Adv. Field Recycling Unit | -7/Zion | Archive Point Defense System | -7/Zion | Archive Robot Schematics ------------------ K-01 Serf | -7/Zion | Archive L-31 Rogue | -7/Zion | Archive Fabricated ------------ Nothing Alien Tech Used ----------------- None Achievements -------------- Cya! Dynamic Key Robot Respite Challenges ------------ None Game ------ Seed HoverAuthchipBoosters Manual? 0 Play Time 00:24:41 Cumulative 3.6 hours Start 2022.12.17 @ 01:43:47 End 2022.12.17 @ 02:23:08 Sessions 1 Manual Loads 0 Difficulty Rogue Special Mode None Game No. 8 Rogue 7 Adventurer 0 Explorer 1 Win Type - Total 0 Types 0/0/0/0/0/0/0/0/0 Lore% 5 Gallery% 6 Achievement% 8 Wizard Run 0 Options --------- ASCII 1 Keyboard 0 Movement Arrows Keybinds 0 Fullscreen 1 Font 18/SmallcapsGlow Map View 76x50 Tactical HUD 1 Map Filters NONE Filters NONE Steam 1 RUN: c370206e-3dff-425c-a825-ac990c678f08